Cogmind - Beta 11.1 @@@ ROGUE MODE // 2022.08.27 @ 01:46:58 Player: Richard Blunt Result: Destroyed by L-41 Fighter with Axe Performance ------------- Evolutions (4) 2000 Regions Visited (11) 2200 Robots Destroyed (138) 690 Value Destroyed (4059) 4059 Prototype IDs (37) 740 Alien Tech Used (0) 0 Bonus (740) 740 TOTAL SCORE: 10429 Bonus ------- High Alert Combat Kills 215 Follower Combat Kills 225 Aligned with FarCom 300 Cogmind --------- Core Integrity 0/850 Matter 290/300 Energy 300/300 System Corruption 2% Temperature Cool (0) Movement Rolling (100) Location -6/Factory Parts ------- > --- POWER (1) -------- Angular Momentum Engine > --- PROPULSION (5) --- Compact Wheel Compact Wheel Compact Wheel Gravmag System > --- UTILITY (7) ------ Large Storage Unit Enhanced Optical Array Improved Signal Interpreter Targeting Computer Advanced Targeting Computer ECM Suite Improved System Shield > --- WEAPON (2) ------- Heavy Laser Chainsword > --- INVENTORY (15) --- Light Deuterium Engine Advanced Heat Sink Advanced Heat Sink Medium Storage Unit Energy Well (350) Structural Scanner Advanced Sensor Array Heavy Laser Heavy Laser Makeshift Shrapnel Gun Peak State ------------ > --- POWER ------------ Angular Momentum Engine > --- PROPULSION ------- Improved Hover Unit Improved Hover Unit Gravmag System Gravmag System Improved Gravmag System > --- UTILITY ---------- Advanced Heat Sink Large Storage Unit Enhanced Optical Array Improved Signal Interpreter Targeting Computer Advanced Targeting Computer Improved System Shield > --- WEAPON ----------- Heavy Laser Chainsword > --- INVENTORY -------- Light Deuterium Engine Compact Wheel Advanced Heat Sink Medium Storage Unit Energy Well Structural Scanner Advanced Sensor Array ECM Suite Heavy Laser Heavy Laser Makeshift Shrapnel Gun [Rating: 56] Favorites ----------- Power Light Angular Momentum Engine Engine Light Angular Momentum Engine Power Core Light Nuclear Core Reactor Cold Fusion Reactor Propulsion Gravmag System Treads Advanced Treads Leg Carbon-fiber Leg Wheel Armored Wheel Hover Unit Gravmag System Flight Unit Improved Cesium-ion Thruster Utility Large Storage Unit Device Seismic Detector Storage Large Storage Unit Processor Signal Interpreter Hackware Hacking Suite Protection Layered Light Armor Plating Weapon Assault Cannon Energy Gun Heavy Laser Energy Cannon Advanced Beam Cannon Ballistic Gun Coil Gun Ballistic Cannon Assault Cannon Launcher Rocket Array Special Weapon Mining Laser Slashing Weapon Chainsword Build | -11 -10 -10 -9 -9 -9 -8 -8 -7 -7 -7 -6 ------- Run | Scr Mat Min Mat Min Exi Min Mat Fac Low Low Fac Slots Evolved 8 | . . . 2 . . . 2 2 . . 2 Power . | . . . . . . . . . . . . Propulsion 3 | . . . 1 . . . 1 1 . . . Utility 5 | . . . 1 . . . 1 1 . . 2 Weapon . | . . . . . . . . . . . . Parts Attached 186 | 7 13 1 21 8 4 . 9 42 4 12 65 Power 20 | 1 . . 1 1 . . 2 5 . 1 9 Engine 13 | 1 . . 1 1 . . 1 3 . . 6 Core 6 | . . . . . . . 1 2 . 1 2 Reactor 1 | . . . . . . . . . . . 1 Propulsion 56 | 2 2 . 3 4 . . 4 17 2 1 21 Treads 1 | . . . . . . . . 1 . . . Leg 10 | . . . . . . . 3 1 . 1 5 Wheel 19 | 2 2 . 3 4 . . 1 . . . 7 Hover 25 | . . . . . . . . 14 2 . 9 Flight 1 | . . . . . . . . 1 . . . Utility 44 | 2 2 . 1 1 . . 1 13 . 4 20 Device 16 | 1 . . 1 1 . . . 2 . . 11 Storage 9 | 1 1 . . . . . . 4 . 1 2 Processor 14 | . 1 . . . . . . 5 . 2 6 Hackware 2 | . . . . . . . 1 . . . 1 Protection 3 | . . . . . . . . 2 . 1 . Artifact . | . . . . . . . . . . . . Weapon 66 | 2 9 1 16 2 4 . 2 7 2 6 15 Energy Gun 20 | 2 4 . 1 . 2 . 1 1 . 1 8 Energy Cannon 2 | . . . 1 1 . . . . . . . Ballistic Gun 4 | . . . . . . . . . 1 1 2 Ballistic Cannon 17 | . 1 . 9 1 1 . . 4 . 1 . Launcher 7 | . 1 1 2 . . . . . 1 2 . Special Weapon 8 | . 3 . 3 . 1 . . . . . 1 Impact Weapon . | . . . . . . . . . . . . Slashing Weapon 8 | . . . . . . . 1 2 . 1 4 Piercing Weapon . | . . . . . . . . . . . . Special Melee Weapon . | . . . . . . . . . . . . Unidentified Prototypes 6 | . . . 1 . . . . 4 . . 1 Parts Lost 59 | . . . 2 6 . . 8 9 2 8 24 Power 8 | . . . . 1 . . 1 2 . 1 3 Propulsion 32 | . . . 1 3 . . 4 5 2 4 13 Utility 10 | . . . . 1 . . 2 . . 3 4 Weapon 9 | . . . 1 1 . . 1 2 . . 4 Highest Loss Streak 8 | . . . 2 4 . . 8 6 1 4 6 To Critical Strikes 1 | . . . . . . . 1 . . . . Average Slot Usage (%) 89 | . 100 100 99 93 95 88 77 90 99 75 80 Engine 6 | . 14 14 11 10 11 11 7 2 7 3 1 Core 1 | . . . . . . . . 4 . 1 1 Leg 1 | . . . . . . . 5 . . 5 2 Wheel 14 | . 28 28 33 32 33 33 24 . . . 5 Hover 10 | . . . . . . . . 31 37 10 10 Device 5 | . 6 . 11 10 11 11 8 2 . . 5 Storage 8 | . 14 14 11 11 11 11 9 7 7 7 3 Processor 18 | . 7 14 11 11 11 11 9 20 23 22 31 Protection 1 | . . . . . . . . 4 7 6 . Energy Gun 4 | . 15 14 1 . 3 11 8 . . . 4 Ballistic Cannon 5 | . 3 . 18 16 11 . . 6 7 3 . Launcher 1 | . . 12 . . . . . . 2 3 . Special Weapon 1 | . 8 1 1 . 2 . . . . . . Slashing Weapon 2 | . . . . . . . . 6 1 1 3 Naked Turns . | . . . . . . . . . . . . Heaviest Build 43 | 13 29 31 38 40 40 38 38 39 43 43 42 Greatest Support 45 | 26 26 24 36 40 38 38 38 45 45 43 45 Greatest Overweight (x) 9 | . 1 1 1 1 1 . 9 3 1 4 7 Average Overweight (x) . | . . 1 . . . . . . . 1 . Largest Inventory Capacity 15 | 8 15 15 15 15 15 15 15 15 15 15 15 Average Capacity 12 | 7 8 15 15 15 15 15 15 11 15 14 8 Most Carried 15 | 6 13 13 15 15 13 14 15 15 15 15 11 Average Carried 10 | 3 8 13 14 13 11 12 14 10 14 13 7 Final Capacity 15 | 8 15 15 15 15 15 15 15 15 15 10 15 Final Carried 15 | 6 13 13 15 12 13 13 13 11 15 10 10 Class Distribution -------------------- 50% | Scavenger-Mutant 33% | Mutant 6% | Scavenger-Skirmisher 4% | Scavenger-Assassin Dominant Class ---------------- Mutant | -10/Materials Mutant | -10/Mines Mutant | -9/Materials Scavenger-Mutant | -9/Mines Scavenger-Mutant | -9/Exiles Scavenger-Mutant | -8/Mines Scavenger-Mutant | -8/Materials Scavenger-Mutant | -7/Factory Scavenger-Mutant | -7/Lower Caves Mutant | -7/Lower Caves Scavenger-Skirmisher | -6/Factory Resources | -11 -10 -10 -9 -9 -9 -8 -8 -7 -7 -7 -6 ----------- Run | Scr Mat Min Mat Min Exi Min Mat Fac Low Low Fac Matter Collected 3559 | 270 120 78 760 320 . 141 60 457 134 145 1074 Remotely . | . . . . . . . . . . . . Salvage Created 4872 | 122 145 18 664 151 . 95 764 429 214 212 2058 Parts 271 | 8 8 7 51 16 . 7 41 33 13 7 80 Haulers Intercepted 2 | . . . 1 . . . 1 . . . . Recyclers Shooed 7 | . . . . . . . . . . . 7 Parts Field Recycled . | . . . . . . . . . . . . Retrieved Matter . | . . . . . . . . . . . . Parts Self-Destructed 14 | . . . . . . . . . 10 4 . Prevented . | . . . . . . . . . . . . Kills | -11 -10 -10 -9 -9 -9 -8 -8 -7 -7 -7 -6 ------- Run | Scr Mat Min Mat Min Exi Min Mat Fac Low Low Fac Combat Hostiles Destroyed 93 | . 5 3 20 11 . 3 15 3 8 6 19 Melee 5 | . . . . . . . . 2 . . 3 Guns 37 | . 2 . . . . 3 15 . . 2 15 Cannons 30 | . 2 . 13 11 . . . 1 1 2 . AOE 19 | . 1 3 7 . . . . . 7 1 . Classes Destroyed 14 | 2 3 . 4 1 . . 1 1 . 2 . Worker 8 | . . . 2 . . . 1 3 . . 2 Builder 4 | . . . 3 . . . . . . . 1 Tunneler 5 | 3 . . 2 . . . . . . . . Hauler 2 | . . . 1 . . . 1 . . . . Recycler 14 | 1 . . 3 . . . . 3 . . 7 Watcher 12 | . 2 . 2 . . . 3 3 . . 2 Swarmer 30 | . 3 3 7 6 . 1 4 . 3 . 3 Grunt 36 | . 2 . 9 3 . 1 8 . 4 . 9 Duelist 4 | . . . . 2 . 1 . . . . 1 Sentry 8 | . . . 4 . . . 2 . 1 . 1 Hunter 2 | . . . . . . . 1 . . . 1 Programmer 7 | . . . . . . . . 3 . . 4 Thug 4 | . . . . . . . . . . 4 . Savage 1 | . . . . . . . . . . 1 . Mutant 1 | . . . . . . . . . . 1 . Best Kill Streak 12 | 2 3 3 12 3 . 2 7 4 7 4 5 Combat Bots Only 7 | . 3 3 7 3 . 2 6 1 7 4 5 Max Kills in Single Turn 6 | 1 1 3 6 1 . 1 1 1 4 1 2 Gunslinging 1 | . . . . . . . . . . . 1 Exploded 4 | . 1 3 2 . . . . . 4 1 . Melee 1 | . . . . . . . . 1 . . 1 Uniques/NPCs Destroyed . | . . . . . . . . . . . . Combat | -11 -10 -10 -9 -9 -9 -8 -8 -7 -7 -7 -6 -------- Run | Scr Mat Min Mat Min Exi Min Mat Fac Low Low Fac Damage Taken 7997 | . 170 7 957 545 . 14 1171 943 543 733 2914 Core 2164 | . 58 7 172 118 . 14 378 371 34 124 888 Absorbed by Shields . | . . . . . . . . . . . . Regen/Repaired (Parts) 107 | . . . 28 . . . 79 . . . . Core Remaining (%) 50 | 100 . 74 . . . 24 31 . . 24 . Volleys Fired 261 | 7 23 1 50 37 1 . . 11 8 31 92 Largest 2 | 2 2 1 2 2 1 . . 1 2 2 2 Hottest 140 | 80 140 30 100 112 100 . . 48 93 75 138 Shots Fired 506 | 14 34 1 93 72 1 6 69 11 16 39 150 Gun 290 | 14 16 . 4 . . 6 69 . 6 27 148 Cannon 184 | . 5 . 78 72 . . . 11 8 10 . Launcher 16 | . 3 1 8 . . . . . 2 2 . Special 16 | . 10 . 3 . 1 . . . . . 2 Kinetic 254 | . 5 . 78 61 . . . 11 14 27 58 Thermal 234 | 14 26 . 7 11 1 6 69 . . 10 90 Explosive 16 | . 3 1 8 . . . . . 2 2 . Electromagnetic . | . . . . . . . . . . . . Robot Hit Streak 24 | 7 5 . 10 8 . 9 24 8 6 10 13 Robot Miss Streak 7 | 3 1 . 4 7 . . 3 1 2 3 3 Penetration Max 2 | . . . . . . . . . . . 2 Secondary Targets 2 | . 1 . . . . . . . . . 1 Max Gunslinging Chain 1 | . 1 . . . . . . . . . 1 Autonomous 76 | . . . . . . 6 70 . . . . Shots Hit Robots 366 | 9 18 . 49 38 . 6 57 23 8 31 127 Core Hits 206 | 5 11 3 37 12 . 4 27 9 15 22 61 Critical Kills . | . . . . . . . . . . . . Critical Parts Destroyed 1 | . . . . . . . . . . . 1 Critical Strikes 11 | . . . 1 1 . . . 2 . 1 6 Burn 2 | . . . . . . . . . . . 2 Destroy 1 | . . . . . . . . . . . 1 Blast 4 | . . . 1 1 . . . 1 . 1 . Sever 4 | . . . . . . . . 1 . . 3 Melee Attacks 94 | . . . . . . . 2 57 . . 35 Impact . | . . . . . . . . . . . . Slashing 94 | . . . . . . . 2 57 . . 35 Piercing . | . . . . . . . . . . . . Sneak Attacks 15 | . . . . . . . . 7 . . 8 Combat Hostiles . | . . . . . . . . . . . . Follow-up Attacks . | . . . . . . . . . . . . Damage Inflicted 11922 | 103 439 125 2121 965 . 184 1698 1186 555 1074 3472 Guns 5202 | 103 132 . 13 . . 184 1698 . 56 499 2517 Cannons 2585 | . 77 . 1037 965 . . . 221 111 174 . Explosions 2336 | . 206 125 1071 . . . . 145 388 401 . Melee 1775 | . . . . . . . . 820 . . 955 Ramming . | . . . . . . . . . . . . Kinetic 4115 | . 77 . 1037 809 . . . 221 167 506 1298 Thermal 4161 | 103 156 . 478 156 . 184 1698 . . 167 1219 Explosive 1871 | . 206 125 606 . . . . 145 388 401 . Electromagnetic . | . . . . . . . . . . . . Impact . | . . . . . . . . . . . . Slashing 1775 | . . . . . . . . 820 . . 955 Piercing . | . . . . . . . . . . . . Highest Corruption 16 | . . . . . . . . 4 4 16 2 Average Corruption 2 | . . . . . . . . 2 4 6 1 Corruption Purged . | . . . . . . . . . . . . Corruption Blocked . | . . . . . . . . . . . . Effects 54 | . . . . . . . . 13 6 16 19 Message Errors 11 | . . . . . . . . 1 3 1 6 Matter Fused 15 | . . . . . . . . 6 . 4 5 Heat Flow Errors 10 | . . . . . . . . 3 1 4 2 Energy Discharges 4 | . . . . . . . . . . 1 3 Data Loss (minor) 7 | . . . . . . . . 1 2 3 1 Misfires 1 | . . . . . . . . . . . 1 Alerts 2 | . . . . . . . . 2 . . . Weapon Failures 4 | . . . . . . . . . . 3 1 Overload Shots . | . . . . . . . . . . . . Overflow Damage 720 | . 31 . 205 . . . . 265 12 7 200 Projectiles 38 | . . . 6 . . . . 25 . 7 . Explosions 249 | . 31 . 199 . . . . 7 12 . . Melee 433 | . . . . . . . . 233 . . 200 Knockbacks 19 | . 2 . 5 10 . . . 1 . 1 . Impact . | . . . . . . . . . . . . Kinetic 18 | . 2 . 5 9 . . . 1 . 1 . Secondary 1 | . . . . 1 . . . . . . . Self-Inflicted Damage 629 | . . . 169 . . . . 238 141 81 . Shots 17 | . . . 4 . . . . 4 6 3 . Rammed . | . . . . . . . . . . . . Targets Rammed . | . . . . . . . . . . . . Kicked . | . . . . . . . . . . . . Crushed . | . . . . . . . . . . . . Highest Temperature 387 | 36 99 . 217 336 16 . 12 203 387 339 241 Average Temperature 77 | 17 26 . 52 102 10 . 6 74 159 136 56 Received Heat Transfer 2407 | . 24 . 327 144 . 9 693 54 120 202 834 Effects 4 | . . . . 2 . . . . . 2 . Energy Bleed 1 | . . . . . . . . . . 1 . Interference 1 | . . . . 1 . . . . . . . Matter Decay 2 | . . . . 1 . . . . . 1 . Siege Activations . | . . . . . . . . . . . . Robots Corrupted . | . . . . . . . . . . . . Combat Hostiles . | . . . . . . . . . . . . Parts Fried . | . . . . . . . . . . . . Impact Corruptions . | . . . . . . . . . . . . Robots Melted 2 | . . . . . . . . . . 1 1 Combat Hostiles 2 | . . . . . . . . . . 1 1 Parts Melted 15 | . . . . 1 . . 4 . . 3 7 Heat Transferred 6379 | 225 350 . 387 259 . 222 2146 . . 296 2494 Parts Sabotaged . | . . . . . . . . . . . . Parts Stolen . | . . . . . . . . . . . . Parts Stripped . | . . . . . . . . . . . . Power Chain Reactions . | . . . . . . . . . . . . Missiles Intercepted . | . . . . . . . . . . . . Alert | -11 -10 -10 -9 -9 -9 -8 -8 -7 -7 -7 -6 ------- Run | Scr Mat Min Mat Min Exi Min Mat Fac Low Low Fac Peak Influence 1154 | 20 285 152 1154 603 . 138 301 195 . . 191 Initial 450 | . 13 52 . 450 . . 53 114 . . 21 Average 152 | 7 118 88 429 493 . 123 127 80 . . 69 Maximum Alert Level 4 | . 1 . 4 2 . . 1 . . . . Low Security (%) 82 | 100 78 100 29 . . 100 86 100 . . 100 Level 1 5 | . 21 . 34 . . . 13 . . . . Level 2 10 | . . . 16 100 . . . . . . . Level 3 . | . . . 10 . . . . . . . . Level 4 . | . . . 8 . . . . . . . . Level 5 . | . . . . . . . . . . . . High Security . | . . . . . . . . . . . . Max Security . | . . . . . . . . . . . . Squads Dispatched 19 | . . . 2 . . . 2 6 . . 9 Investigation 8 | . . . . . . . 2 3 . . 3 Extermination 7 | . . . . . . . . 3 . . 4 Reinforcement 4 | . . . 2 . . . . . . . 2 Assault . | . . . . . . . . . . . . Garrison . | . . . . . . . . . . . . Intercept . | . . . . . . . . . . . . Searches Triggered . | . . . . . . . . . . . . Construction Impeded . | . . . . . . . . . . . . Haulers Reinforced . | . . . . . . . . . . . . Active Scanning Responses . | . . . . . . . . . . . . Cargo Convoy Interrupts . | . . . . . . . . . . . . Stealth | -11 -10 -10 -9 -9 -9 -8 -8 -7 -7 -7 -6 --------- Run | Scr Mat Min Mat Min Exi Min Mat Fac Low Low Fac Distress Signals 3 | . . . 3 . . . . . . . . Communications Jammed . | . . . . . . . . . . . . Distress Signals . | . . . . . . . . . . . . Times Spotted 153 | . 9 3 34 11 . 7 21 11 9 9 39 Peak Tracking Total 7 | . 3 3 7 3 . 3 7 3 7 5 6 Tactical Retreats 10 | . . . 1 . . . . . 2 2 5 Traps | -11 -10 -10 -9 -9 -9 -8 -8 -7 -7 -7 -6 ------- Run | Scr Mat Min Mat Min Exi Min Mat Fac Low Low Fac Traps Triggered 3 | . . . . . . . 1 . . . 2 Indirectly . | . . . . . . . . . . . . Trap Hack Attempts . | . . . . . . . . . . . . Triggered . | . . . . . . . . . . . . Disarmed . | . . . . . . . . . . . . Reprogrammed . | . . . . . . . . . . . . Reused . | . . . . . . . . . . . . Traps Extracted . | . . . . . . . . . . . . Installed . | . . . . . . . . . . . . Triggered 1 | . . . . . . . . . 1 . . Machines | -11 -10 -10 -9 -9 -9 -8 -8 -7 -7 -7 -6 ---------- Run | Scr Mat Min Mat Min Exi Min Mat Fac Low Low Fac Machines Disabled 25 | . . . 11 . . . 2 8 2 . 2 Max in Single Turn 7 | . . . 7 . . . 1 6 2 . 1 Machines Sabotaged . | . . . . . . . . . . . . Garrisons Compromised . | . . . . . . . . . . . . Overloaded Fab Kills . | . . . . . . . . . . . . Hacking | -11 -10 -10 -9 -9 -9 -8 -8 -7 -7 -7 -6 --------- Run | Scr Mat Min Mat Min Exi Min Mat Fac Low Low Fac Machines Accessed 40 | . 6 . 4 . 4 . 5 10 1 . 10 Terminals 22 | . 6 . 3 . . . 2 4 . . 7 Fabricators 3 | . . . . . . . . 1 . . 2 Repair Stations 4 | . . . 1 . . . 2 1 . . . Recycling Units 2 | . . . . . . . . 1 . . 1 Scanalyzers 3 | . . . . . . . 1 2 . . . Garrison Access 1 | . . . . . . . . 1 . . . Total Hacks 100 | . 10 . 7 . 8 . 18 32 1 . 24 Successful 59 | . 9 . 4 . 8 . 10 20 1 . 7 Failed 41 | . 1 . 3 . . . 8 12 . . 17 Catastrophic 8 | . . . 1 . . . . 1 . . 6 Database Lockouts . | . . . . . . . . . . . . Manual 25 | . 3 . 4 . 1 . 1 5 . . 11 Terminals 48 | . 10 . 4 . . . 8 10 . . 16 Fabricators 9 | . . . . . . . . 3 . . 6 Repair Stations 11 | . . . 3 . . . 7 1 . . . Recycling Units 3 | . . . . . . . . 1 . . 2 Scanalyzers 19 | . . . . . . . 3 16 . . . Garrison Access 1 | . . . . . . . . 1 . . . Terminal Hacks 29 | . 9 . 2 . 8 . 3 3 1 . 3 Record 9 | . 1 . . . 7 . . . 1 . . Part Schematic 1 | . . . . . . . . 1 . . . Robot Analysis 2 | . 2 . . . . . . . . . . Prototype ID Bank 2 | . . . . . . . . 1 . . 1 Open DSF 1 | . . . . . . . . . . . 1 Branch Access Points 3 | . 1 . 1 . . . 1 . . . . Fabricator Index 1 | . . . . . . . . . . . 1 Locate Traps 3 | . 3 . . . . . . . . . . Registered Components 1 | . . . . . . . 1 . . . . Registered Prototypes 1 | . 1 . . . . . . . . . . Zone Layout 4 | . 1 . 1 . . . 1 1 . . . EX-Prototype ID Bank 1 | . . . . . 1 . . . . . . Fabricator Hacks 6 | . . . . . . . . 2 . . 4 Load Schematic 3 | . . . . . . . . 1 . . 2 Build 3 | . . . . . . . . 1 . . 2 Repair Station Hacks 7 | . . . 2 . . . 5 . . . . Scan Component 4 | . . . 1 . . . 3 . . . . Repair 3 | . . . 1 . . . 2 . . . . Recycling Unit Hacks 1 | . . . . . . . . 1 . . . Report Inventory 1 | . . . . . . . . 1 . . . Scanalyzer 16 | . . . . . . . 2 14 . . . Insert Component 10 | . . . . . . . 2 8 . . . Analyze 6 | . . . . . . . . 6 . . . Garrison Access Hacks . | . . . . . . . . . . . . Unauthorized Hacks . | . . . . . . . . . . . . Terminals . | . . . . . . . . . . . . Fabricators . | . . . . . . . . . . . . Repair Stations . | . . . . . . . . . . . . Recycling Units . | . . . . . . . . . . . . Scanalyzers . | . . . . . . . . . . . . Garrison Access . | . . . . . . . . . . . . Data Cores Recovered . | . . . . . . . . . . . . Used . | . . . . . . . . . . . . Hacking Detections 23 | . 1 . 2 . . . 4 8 . . 8 Full Trace Events 6 | . . . . . . . 1 3 . . 2 Feedback Events . | . . . . . . . . . . . . Feedback Blocked . | . . . . . . . . . . . . Robot Schematics Acquired . | . . . . . . . . . . . . Robots Built . | . . . . . . . . . . . . Authchips . | . . . . . . . . . . . . Time . | . . . . . . . . . . . . Total Robot Build Rating . | . . . . . . . . . . . . Part Schematics Acquired 6 | . . . . . . . . 6 . . . Parts Built 6 | . . . . . . . . 2 . . 4 Authchips . | . . . . . . . . . . . . Time 210 | . . . . . . . . 84 . . 126 Total Part Build Rating 24 | . . . . . . . . 8 . . 16 Parts Repaired 3 | . . . 1 . . . 2 . . . . Time 128 | . . . 32 . . . 96 . . . . Parts Recycled . | . . . . . . . . . . . . Recycled Matter . | . . . . . . . . . . . . Retrieved Matter . | . . . . . . . . . . . . Retrieved Components . | . . . . . . . . . . . . Parts Scanalyzed 7 | . . . . . . . 1 6 . . . Part Schematics Acquired 5 | . . . . . . . . 5 . . . Parts Damaged . | . . . . . . . . . . . . Bothacking | -11 -10 -10 -9 -9 -9 -8 -8 -7 -7 -7 -6 ------------ Run | Scr Mat Min Mat Min Exi Min Mat Fac Low Low Fac Used RIF Installer . | . . . . . . . . . . . . Robots Hacked 1 | . . . . . . . . . . . 1 Non-combat 1 | . . . . . . . . . . . 1 Combat . | . . . . . . . . . . . . Robot Hacks Applied 1 | . . . . . . . . . . . 1 no_distress 1 | . . . . . . . . . . . 1 Relay Couplers Released . | . . . . . . . . . . . . Fabnet Peak Effective % . | . . . . . . . . . . . . Robots Rewired . | . . . . . . . . . . . . Allies Hacked . | . . . . . . . . . . . . Hacks Repelled . | . . . . . . . . . . . . Allies | -11 -10 -10 -9 -9 -9 -8 -8 -7 -7 -7 -6 -------- Run | Scr Mat Min Mat Min Exi Min Mat Fac Low Low Fac Total Allies 6 | . . 2 . 3 . . . . . 1 . Largest Group 3 | . . 2 2 3 3 3 1 . . 1 . Highest-Rated Group 106 | . . 42 42 40 40 40 16 . . 106 . Highest-Rated Ally 106 | . . 31 31 16 16 16 16 . . 106 . Total Orders 6 | . . . . . 6 . . . . . . ROAM 3 | . . . . . 3 . . . . . . FOLLOW 3 | . . . . . 3 . . . . . . Ally Attacks 44 | . . . 11 . . 23 1 . . 9 . Total Damage 652 | . . . 185 . . 186 . . . 281 . Kills 10 | . . . 4 . . 4 . . . 2 . Allies Corrupted . | . . . . . . . . . . . . Allies Melted . | . . . . . . . . . . . . Intel | -11 -10 -10 -9 -9 -9 -8 -8 -7 -7 -7 -6 ------- Run | Scr Mat Min Mat Min Exi Min Mat Fac Low Low Fac Robot Analysis Total 2 | . 2 . . . . . . . . . . Derelict Logs Recovered 5 | . . . . 3 . . . . 2 . . Drone Launches . | . . . . . . . . . . . . Drone Recoveries . | . . . . . . . . . . . . Exploration | -11 -10 -10 -9 -9 -9 -8 -8 -7 -7 -7 -6 ------------- Run | Scr Mat Min Mat Min Exi Min Mat Fac Low Low Fac Turns Passed 9505 | 127 618 626 748 707 679 196 610 1986 245 497 2466 Spaces Moved 7642 | 101 503 490 428 527 673 198 442 1972 460 226 1622 Core 56 | 3 . . . . . . 6 . . . 47 Treads . | . . . . . . . . . . . . Legs 355 | . . . . . . . 6 36 . 124 189 Wheels 4280 | 98 503 490 428 527 673 198 430 . . . 933 Hover 2951 | . . . . . . . . 1936 460 102 453 Flight . | . . . . . . . . . . . . Fastest Speed 42 | 50 85 105 90 90 90 90 90 42 42 42 44 Average Speed 88 | 88 91 105 100 95 95 90 96 62 42 159 107 Slowest Speed 500 | 90 105 105 105 110 105 90 500 240 105 300 400 Overloaded Moves . | . . . . . . . . . . . . Propulsion Burnouts . | . . . . . . . . . . . . Robots Hopped . | . . . . . . . . . . . . Cave-ins Triggered . | . . . . . . . . . . . . Exploration Rate (%) 50 | 4 75 65 50 99 93 31 33 29 66 35 25 Regions Visited 11 Branch Regions 6 Pre-discovered Areas . | . . . . . . . . . . . . Known Exits Taken 10 | . 1 1 1 1 1 1 1 1 1 1 . Unknown Exits Taken 1 | 1 . . . . . . . . . . . Scrap Searched 7 | . . 1 . 1 . . . . 4 1 . Spaces Dug 153 | . 9 10 53 . 1 . 2 34 . 27 17 Terrain Destroyed 341 | . 33 10 117 16 1 . 8 65 27 46 18 Melee 53 | . . . . . . . 2 34 . . 17 Projectile 61 | . 9 . 19 16 1 . 6 2 2 5 1 AOE 227 | . 24 10 98 . . . . 29 25 41 . Terrain Rammed . | . . . . . . . . . . . . Walls Destroyed . | . . . . . . . . . . . . Machines Disabled . | . . . . . . . . . . . . Actions | -11 -10 -10 -9 -9 -9 -8 -8 -7 -7 -7 -6 --------- Run | Scr Mat Min Mat Min Exi Min Mat Fac Low Low Fac Total 9747 | 120 608 600 644 658 703 218 623 2632 492 316 2133 Wait 1388 | . 45 109 122 85 23 9 162 505 13 41 274 Move 7631 | 100 502 489 427 526 672 197 441 1971 459 225 1622 Hop . | . . . . . . . . . . . . Pick Up 95 | 6 14 . 14 2 . 6 6 19 7 3 18 Fast Attach 64 | 7 1 . 2 . 2 . 2 14 . 1 35 Attach 46 | . . . 5 5 1 . 7 15 2 4 7 Detach 14 | . . . . . 2 . 2 7 . . 3 Swap 77 | . 12 1 14 3 1 . . 14 2 7 23 Drop 77 | . 11 . 10 . 1 6 1 19 1 4 24 Fire 261 | 7 23 1 50 37 1 . . 11 8 31 92 Melee 94 | . . . . . . . 2 57 . . 35 Ram . | . . . . . . . . . . . . Kick . | . . . . . . . . . . . . Crush . | . . . . . . . . . . . . Escape Stasis . | . . . . . . . . . . . . Rewire . | . . . . . . . . . . . . Trap . | . . . . . . . . . . . . Miscellaneous . | . . . . . . . . . . . . Route ------- -11/Scrapyard -10/Materials (discovered 4 exits: *Mat x2 / *Min x2) -10/Mines -9/Materials (discovered 3 exits: *Mat / *Min / *Sto) -9/Mines (discovered 3 exits: *Mat x2 / *Exi) -9/Exiles (discovered 2 exits: *Min x2) -8/Mines -8/Materials -7/Factory (discovered 3 exits: *Fac x2 / *Low) -7/Lower Caves -7/Lower Caves -6/Factory (discovered 1 exit: *Low) History --------- Turn | Location | Event 23 | -11/Scrapyard | Discovered new exit (range 16) 128 | -11/Scrapyard | Entered Materials 302 | -10/Materials | Build established: Mutant 373 | -10/Materials | Discovered new exit (range 14) 394 | -10/Materials | Identified exit to Materials 518 | -10/Materials | Discovered new exit (range 10) 527 | -10/Materials | Identified exit to Mines 654 | -10/Materials | Discovered exit to Materials (range 16) 746 | -10/Materials | Entered Mines 965 | -10/Mines | Discovered exit to Materials (range 6) 1262 | -10/Mines | Assembled infested the area 1372 | -10/Mines | Entered Materials 1372 | -9/Materials | Accompanied by 2 allies 1372 | -9/Materials | Evolved 2 slots: Propulsion x1, Utility x1 1377 | -9/Materials | Led the pair of lost Derelicts to an unsafe place 1580 | -9/Materials | Discovered new exit (range 12) 1601 | -9/Materials | Identified exit to Materials 1613 | -9/Materials | Identified exit to Mines 1613 | -9/Materials | Identified exit to Storage 1733 | -9/Materials | Repaired Arm. Wheel 1891 | -9/Materials | Destroyed 7 combat bots 2120 | -9/Materials | Entered Mines 2129 | -9/Mines | Learned Materials garrison access intel 2284 | -9/Mines | Learned Materials terminal intel 2292 | -9/Mines | Found a damaged Exp. Sensor Array with a note attached 2294 | -9/Mines | Found Prototype Device 2423 | -9/Mines | Core integrity fell below 50% 2483 | -9/Mines | Lost 4 parts (1p2n1u) 2500 | -9/Mines | Discovered exit to Materials (range 13) 2520 | -9/Mines | Discovered exit to Materials (range 4) 2654 | -9/Mines | Assisted by bots powering up and referring to "LRC-V3" 2767 | -9/Mines | Build established: Scavenger-Mutant 2799 | -9/Mines | Deemed a non-threat by the Exiles lab entrance 2799 | -9/Mines | Discovered new exit (range 5) 2802 | -9/Mines | Identified exit to Exiles 2827 | -9/Mines | Entered Exiles 2827 | -9/Exiles | Accompanied by 3 allies 2846 | -9/Exiles | Discovered new exit (range 15) 2861 | -9/Exiles | Met 8R-AWN 2879 | -9/Exiles | Met EX-HEX 3012 | -9/Exiles | Met EX-DEC 3036 | -9/Exiles | Visited The Gauntlet 3223 | -9/Exiles | Met EX-BIN 3241 | -9/Exiles | Aligned with FarCom system 3242 | -9/Exiles | Given EX-Vault access code 3268 | -9/Exiles | Opened EX-Vault 3276 | -9/Exiles | Found AWS/Thermal 3334 | -9/Exiles | Warned to stay clear of 0b10 Research branches 3444 | -9/Exiles | Discovered new exit (range 14) 3454 | -9/Exiles | Identified exit to Mines 3506 | -9/Exiles | Left Exiles lab with AWS/Thermal 3506 | -9/Exiles | Entered Mines 3506 | -8/Mines | Accompanied by 3 allies 3684 | -8/Mines | Discovered exit to Materials (range 4) 3702 | -8/Mines | Entered Materials 3702 | -8/Materials | Accompanied by 1 ally 3702 | -8/Materials | Evolved 2 slots: Propulsion x1, Utility x1 3703 | -8/Materials | Loaded intel: 12 terminal locations 3704 | -8/Materials | Loaded intel: 1 garrison access location 3784 | -8/Materials | Repaired Com. Wheel 4069 | -8/Materials | Repaired Broken Lgt. Angular Momentum Engine 4115 | -8/Materials | Discovered new exit (range 9) 4128 | -8/Materials | Identified exit to Factory 4214 | -8/Materials | Identified Exp. Sensor Array 4306 | -8/Materials | Core integrity fell below 50% 4312 | -8/Materials | Entered Factory 4312 | -7/Factory | Evolved 2 slots: Propulsion x1, Utility x1 4327 | -7/Factory | Lost 8 parts (1p4n2u1w) 5030 | -7/Factory | Discovered new exit (range 4) 5034 | -7/Factory | Identified exit to Lower Caves 5243 | -7/Factory | Found Prototype Launcher 5615 | -7/Factory | Core integrity fell below 50% 5666 | -7/Factory | Lost 6 parts (1p4n1w) 5717 | -7/Factory | Identified Rocket Array 5783 | -7/Factory | Discovered new exit (range 5) 5788 | -7/Factory | Identified exit to Factory 5923 | -7/Factory | Discovered exit to Factory (range 2) 6027 | -7/Factory | Fabricated Gravmag System? 6298 | -7/Factory | Entered Lower Caves 6340 | -7/Lower Caves | Attracted the attention of an 0b10 checkpoint 6460 | -7/Lower Caves | Attracted the attention of an 0b10 base 6487 | -7/Lower Caves | Destroyed 7 combat bots 6490 | -7/Lower Caves | Learned Factory terminal intel 6540 | -7/Lower Caves | Discovered new exit (range 6) 6542 | -7/Lower Caves | Identified exit to Lower Caves 6543 | -7/Lower Caves | Entered another Lower Caves area 6646 | -7/Lower Caves | Lost 4 parts (4n) 6786 | -7/Lower Caves | Attacked by a faux Warlord 6924 | -7/Lower Caves | System corruption reached 10% 6954 | -7/Lower Caves | Lost 3 parts (3u) 6988 | -7/Lower Caves | 12-ASH showed up to help 7005 | -7/Lower Caves | 12-ASH revealed a hidden path 7040 | -7/Lower Caves | Entered Factory 7040 | -6/Factory | Evolved 2 slots: Utility x2 7041 | -6/Factory | Loaded intel: 26 terminal locations 7099 | -6/Factory | Build established: Mutant 7411 | -6/Factory | Lost 5 parts (1p2n1u1w) 7454 | -6/Factory | Core integrity fell below 50% 7478 | -6/Factory | Lost 6 parts (1p2n2u1w) 7878 | -6/Factory | Fabricated Gravmag System? 8131 | -6/Factory | Build established: Scavenger-Assassin 8206 | -6/Factory | Core integrity fell below 20% 8752 | -6/Factory | Build established: Scavenger-Skirmisher 8964 | -6/Factory | Discovered new exit (range 5) 9027 | -6/Factory | Identified exit to Lower Caves 9295 | -6/Factory | Lost 3 parts (3n) 9475 | -6/Factory | Fabricated Gravmag System? 9506 | -6/Factory | Destroyed by L-41 Fighter with Axe Last Messages --------------- R-10 Processor collects Imp. Ion Engine. Connecting with Fabricator... >>Build Building Gravmag System... ETC: 42 ALERT: Unauthorized use of fabrication network. Dispatching investigation squad. C-30 ARC bursts open, deploying its payload. L-41 Fighter unfolds itself. G-50 Soldier unfolds itself. Gravmag System destroyed. Critical hit (Burn: +37). >> FABRICATOR: Completed Gravmag System? System corrupted: Energy discharge (-60). Sneak attack on R-10 Processor. R-10 Processor destroyed. Acquired 15 matter. Acquired Com. Wheel. Sneak attack on R-10 Processor. R-10 Processor destroyed. Map ----- +----------------------------------------------------+ | ?????????????????????????????????## #### | | ?????????????????????????????????## ####=* | | ?????????????????????????????????## ####%######### | | ????????????????????????????## ####=##### ! | | ?????????????????????????????????## ####[##?## % | | ?????????? ????????????????????## #### ##### * | | ?????????# #???????????????????## #### ##### | | ?????????# #??????????????????### #### =%*+ | | ?????????# #??????????????????### #### [!=[# | | ?????????# ################???## ### *%!%##### | | ?????????# ################???## >| * | | ?????????# ## ####### b###+######### | | ?????????# ## ########g## ## | | ??????? ## ## # g # ##?? | | ??????? ## ## # # ##?? | | ??????? # # # # ##?? | | ??????? # # # """ """ # ##?? | | ??????? # + # """ """ # ##?? | | ##????? + # # """ """ # ##?? | | #????? # # # # ##?? | | # # # # # [ ##?? | | ######## # #/###################?? | | # # # # ##########?? | | # ##+#####/##### # ##?????????? | | + ##### #####=# """"##?????????? | | # g ul@%==+ !! """"##?????????? | | # g ###########%[! """"##?????????? | | ## "" """ """ # ## ! """"##?????????? | | ## "F """ """ # ## ##?????????? | | "" """ """ # ## ##?????????? | | "" """ """ # ## [ ##?????????? | | +% ############?????????? | | # ############?????????? | | ^ ##### # ##???????????????????? | | ###+######## # ##???????????????????? | | # ??? ########### ##???????????????????? | | ???????? # ####+#######???????????????????? | | ???????? # """"""?#### #######???????????????????? | | ???????? # """""????## ##????????????????????????? | | ?????????? """""????## ##????????????????????????? | | ???????????" ""???#### ####??????????????????????? | | ?????????# ??#### ####??????????????????????? | | ?????????###+####### ##??????????????????????? | | ?????????## ###### "" ##??????????????????????? | | ?????????## % "T ##??????????????????????? | | ##???????##% ###### ##??????????????????????? | | ########### ####### ###?????????????????????? | | ########### ###??####+#####?????????????????????? | | !% ##???##! ##?????????????????????? | | [ ####### ##?????????????????????? | +----------------------------------------------------+ Best States ------------- Heat Dissipation 68 Energy Generation 18 Energy Capacity 300 Matter Stores 300 Matter Capacity 300 Sight Range 22 Robot Scan Range 16 Terrain Scan Density 10 ECM Strength 1 Armor Coverage 150 Evasion (%) 56 Targeting Accuracy 13 Melee Accuracy 16 Launcher Accuracy 20 Target Analysis 5 Recoil Reduction 1 Offensive Hacking 10 Defensive Hacking 12 Item Schematics ----------------- Lyr. Light Armor Plating | -7/Factory | Hacked Gauss Cannon | -7/Factory | Scanalyzed Gravmag System | -7/Factory | Scanalyzed Rocket Array | -7/Factory | Scanalyzed Enh. Nuclear Core | -7/Factory | Scanalyzed Lrg. Storage Unit | -7/Factory | Scanalyzed Robot Schematics ------------------ None Fabricated ------------ Gravmag System | x2 | -7/Factory Gravmag System | x2 | -6/Factory Gravmag System | x2 | -6/Factory Alien Tech Used ----------------- None Achievements -------------- Hey, That's Mine! Knowing Is Half The Battle Party Time Safety First Challenges ------------ None Game ------ Seed SapperAssemblyMachine Manual? 0 Play Time 04:44:52 Cumulative 28.5 hours Start 2022.08.26 @ 14:32:47 End 2022.08.27 @ 01:46:58 Sessions 5 Manual Loads 0 Difficulty Rogue Special Mode None Game No. 5 Rogue 5 Adventurer 0 Explorer 0 Win Type - Total 0 Types 0/0/0/0/0/0/0/0/0 Lore% 18 Gallery% 19 Achievement% 16 Wizard Run 0 Options --------- ASCII 0 Keyboard 0 Movement Mouse Keybinds 0 Fullscreen 1 Font 24/Smallcaps Map View 76x50 Tactical HUD 0 Map Filters NONE Filters NONE Steam 1 RUN: 822fac10-ad5c-422d-9294-088869e89309